Cogmind - Beta 10.2 @@@ ROGUE MODE // 2021.01.20 @ 19:05:02 Player: Boris Result: Destroyed by as-63525 with Assembled Blade Performance ------------- Evolutions (0) 0 Regions Visited (4) 800 Robots Destroyed (19) 95 Value Destroyed (416) 416 Prototype IDs (26) 520 Alien Tech Used (0) 0 Bonus (77) 77 TOTAL SCORE: 1908 Bonus ------- Follower Combat Kills 77 Cogmind --------- Core Integrity 0/250 Matter 300/300 Energy 100/100 System Corruption 4% Temperature Cool (0) Movement Rolling (120) Ox4 Location -9/Mines Parts ------- > --- POWER (1) -------- (None) > --- PROPULSION (2) --- Light Treads Wheel > --- UTILITY (2) ------ Large Storage Unit High-capacity Storage Unit > --- WEAPON (2) ------- Assault Rifle > --- INVENTORY (18) --- Ion Engine Reinforced Ion Engine Lightpack 2.0 High-capacity Matter Pod (200) Light Armor Plating Light Armor Plating Light Armor Plating Medium Armor Plating Medium Armor Plating Medium Armor Plating Medium Armor Plating EM Pulse Gun Particle Gun Datajack Remote Datajack Mining Laser Peak State ------------ > --- POWER ------------ Ion Engine > --- PROPULSION ------- Light Treads Compact Wheel > --- UTILITY ---------- Large Storage Unit High-capacity Storage Unit > --- WEAPON ----------- EM Pulse Gun Small Laser > --- INVENTORY -------- Ion Engine Ion Engine Wheel Lightpack 2.0 High-capacity Matter Pod Light Armor Plating Light Armor Plating Light Armor Plating Medium Armor Plating Medium Armor Plating Medium Armor Plating Medium Armor Plating Particle Gun Assault Rifle Light Assault Rifle Datajack Mining Laser [Rating: 11] Favorites ----------- Power Ion Engine Engine Ion Engine Propulsion Light Treads Treads Light Treads Wheel Compact Wheel Utility Large Storage Unit Device Improved Terrain Scanner Storage Large Storage Unit Weapon EM Pulse Gun Energy Gun EM Pulse Gun Ballistic Gun Assault Rifle Special Melee Weapon Datajack Build | -11 -10 -10 -10 -9 ------- Run | Scr Mat Min Exi Min Slots Evolved . | . . . . . Power . | . . . . . Propulsion . | . . . . . Utility . | . . . . . Weapon . | . . . . . Parts Attached 23 | 7 9 3 1 3 Power 4 | 1 2 1 . . Engine 4 | 1 2 1 . . Core . | . . . . . Reactor . | . . . . . Propulsion 4 | 2 . 1 . 1 Treads 2 | 1 . 1 . . Leg . | . . . . . Wheel 2 | 1 . . . 1 Hover . | . . . . . Flight . | . . . . . Utility 5 | 2 3 . . . Device 1 | 1 . . . . Storage 4 | 1 3 . . . Processor . | . . . . . Hackware . | . . . . . Protection . | . . . . . Artifact . | . . . . . Weapon 10 | 2 4 1 1 2 Energy Gun 7 | 2 4 1 . . Energy Cannon . | . . . . . Ballistic Gun 2 | . . . . 2 Ballistic Cannon . | . . . . . Launcher . | . . . . . Special Weapon . | . . . . . Impact Weapon . | . . . . . Slashing Weapon . | . . . . . Piercing Weapon . | . . . . . Special Melee Weapon 1 | . . . 1 . Unidentified Prototypes . | . . . . . Parts Lost 7 | . 2 2 . 3 Power 1 | . . . . 1 Propulsion 2 | . . 1 . 1 Utility . | . . . . . Weapon 4 | . 2 1 . 1 Highest Loss Streak 3 | . 1 1 . 3 Average Slot Usage (%) 99 | . 99 99 100 96 Engine 13 | . 14 14 14 13 Treads 13 | . 14 13 14 14 Wheel 13 | . 14 14 14 13 Storage 27 | . 27 28 28 28 Energy Gun 23 | . 27 27 18 11 Special Melee Weapon 4 | . . . 9 11 Naked Turns . | . . . . . Heaviest Build 57 | 12 57 56 56 56 Greatest Support 20 | 20 16 16 16 16 Greatest Overweight (x) 5 | . 3 3 3 5 Average Overweight (x) 2 | . 2 3 3 3 Largest Inventory Capacity 18 | 6 18 18 18 18 Average Capacity 16 | 5 15 18 18 18 Most Carried 18 | 6 18 18 18 18 Average Carried 15 | 2 11 17 17 17 Final Capacity 18 | 6 18 18 18 18 Final Carried 18 | 4 18 18 18 17 Class Distribution -------------------- 100% | Mutant Dominant Class ---------------- Mutant | -10/Materials Mutant | -10/Mines Mutant | -10/Exiles Mutant | -9/Mines Resources | -11 -10 -10 -10 -9 ----------- Run | Scr Mat Min Exi Min Matter Collected 592 | 270 212 76 10 24 Remotely . | . . . . . Salvage Created 931 | 116 542 103 170 . Parts 51 | 6 28 7 10 . Haulers Intercepted 2 | . 2 . . . Recyclers Shooed . | . . . . . Parts Field Recycled . | . . . . . Retrieved Matter . | . . . . . Parts Self-Destructed . | . . . . . Prevented . | . . . . . Kills | -11 -10 -10 -10 -9 ------- Run | Scr Mat Min Exi Min Combat Hostiles Destroyed 12 | . 10 2 . . Guns 10 | . 9 1 . . Classes Destroyed 7 | 2 5 . . . Builder 1 | . 1 . . . Tunneler 1 | 1 . . . . Hauler 2 | . 2 . . . Recycler 1 | 1 . . . . Watcher 2 | . 2 . . . Swarmer 3 | . 3 . . . Grunt 9 | . 7 2 . . Best Kill Streak 6 | 2 6 1 . . Combat Bots Only 6 | . 6 1 . . Max Kills in Single Turn 2 | 1 2 1 . . Gunslinging . | . . . . . Exploded . | . . . . . Melee . | . . . . . Uniques/NPCs Destroyed . | . . . . . Combat | -11 -10 -10 -10 -9 -------- Run | Scr Mat Min Exi Min Damage Taken 1215 | . 397 171 . 647 Core 271 | . 72 26 . 173 Absorbed by Shields . | . . . . . Core Remaining (%) 100 | 100 . . . . Volleys Fired 95 | 4 44 19 20 8 Largest 2 | 2 2 1 1 2 Hottest 100 | 100 100 40 40 40 Shots Fired 124 | 8 67 19 20 10 Gun 124 | 8 67 19 20 10 Cannon . | . . . . . Launcher . | . . . . . Special . | . . . . . Kinetic 4 | . . . . 4 Thermal 47 | 8 39 . . . Explosive . | . . . . . Electromagnetic 73 | . 28 19 20 6 Robot Hit Streak 11 | 2 11 7 9 8 Robot Miss Streak 2 | 1 2 2 2 1 Penetration Max . | . . . . . Secondary Targets . | . . . . . Shots Hit Robots 94 | 4 47 14 20 9 Core Hits 40 | 3 25 4 6 2 Critical Hits . | . . . . . Critical Kills . | . . . . . Critical Parts Destroyed . | . . . . . Melee Attacks 6 | . . . 6 . Impact . | . . . . . Slashing . | . . . . . Piercing . | . . . . . Sneak Attacks 6 | . . . 6 . Combat Hostiles 6 | . . . 6 . Follow-up Attacks . | . . . . . Damage Inflicted 1245 | 51 696 180 215 103 Guns 1101 | 51 648 180 124 98 Cannons . | . . . . . Explosions 139 | . 48 . 91 . Melee . | . . . . . Ramming 5 | . . . . 5 Kinetic 37 | . . . . 37 Thermal 514 | 51 372 . 91 . Explosive . | . . . . . Electromagnetic 689 | . 324 180 124 61 Impact . | . . . . . Slashing . | . . . . . Piercing . | . . . . . Highest Corruption 4 | . . . . 4 Average Corruption 3 | . . . . 3 Corruption Purged . | . . . . . Effects 2 | . . . . 2 Energy Discharges 1 | . . . . 1 Data Loss (minor) 1 | . . . . 1 Overload Shots . | . . . . . Overflow Damage 5 | . . . 5 . Projectiles . | . . . . . Explosions 5 | . . . 5 . Melee . | . . . . . Knockbacks . | . . . . . Impact . | . . . . . Kinetic . | . . . . . Secondary . | . . . . . Self-Inflicted Damage 9 | . 9 . . . Shots 1 | . 1 . . . Rammed 1 | . . . . 1 Targets Rammed 1 | . . . . 1 Kicked . | . . . . . Crushed . | . . . . . Highest Temperature 231 | 78 231 81 . 6 Average Temperature 62 | 43 72 37 . 6 Received Heat Transfer 338 | . 153 99 . 86 Siege Activations . | . . . . . Robots Corrupted 3 | . 1 1 1 . Combat Hostiles 2 | . 1 1 . . Parts Fried 2 | . 1 1 . . Impact Corruptions . | . . . . . Robots Melted . | . . . . . Combat Hostiles . | . . . . . Parts Melted 2 | 1 1 . . . Heat Transferred 1201 | 148 1003 . 50 . Parts Sabotaged . | . . . . . Parts Stolen . | . . . . . Parts Stripped . | . . . . . Power Chain Reactions 2 | . 1 . 1 . Missiles Intercepted . | . . . . . Alert | -11 -10 -10 -10 -9 ------- Run | Scr Mat Min Exi Min Peak Influence 202 | 10 202 53 . 81 Initial 6 | . 6 3 . . Average 63 | 2 107 13 . 59 Maximum Alert Level 1 | . 1 . . . Low Security (%) 94 | 100 87 100 . 100 Level 1 5 | . 12 . . . Level 2 . | . . . . . Level 3 . | . . . . . Level 4 . | . . . . . Level 5 . | . . . . . High Security . | . . . . . Max Security . | . . . . . Squads Dispatched 1 | . 1 . . . Investigation 1 | . 1 . . . Extermination . | . . . . . Reinforcement . | . . . . . Assault . | . . . . . Garrison . | . . . . . Intercept . | . . . . . Construction Impeded . | . . . . . Haulers Reinforced . | . . . . . Stealth | -11 -10 -10 -10 -9 --------- Run | Scr Mat Min Exi Min Distress Signals . | . . . . . Communications Jammed . | . . . . . Distress Signals . | . . . . . Times Spotted 38 | . 16 3 . 19 Peak Tracking Total 14 | . 5 2 . 14 Tactical Retreats 4 | . 1 1 . 2 Traps | -11 -10 -10 -10 -9 ------- Run | Scr Mat Min Exi Min Traps Triggered 2 | . 2 . . . Indirectly . | . . . . . Trap Hack Attempts . | . . . . . Triggered . | . . . . . Disarmed . | . . . . . Reprogrammed . | . . . . . Reused . | . . . . . Traps Extracted . | . . . . . Installed . | . . . . . Triggered . | . . . . . Machines | -11 -10 -10 -10 -9 ---------- Run | Scr Mat Min Exi Min Machines Disabled . | . . . . . Max in Single Turn . | . . . . . Machines Sabotaged . | . . . . . Garrisons Compromised . | . . . . . Overloaded Fab Kills . | . . . . . Fab Network Shutdowns . | . . . . . Hacking | -11 -10 -10 -10 -9 --------- Run | Scr Mat Min Exi Min Machines Accessed 10 | . 7 . 3 . Terminals 6 | . 6 . . . Fabricators . | . . . . . Repair Stations . | . . . . . Recycling Units 1 | . 1 . . . Scanalyzers . | . . . . . Garrison Access . | . . . . . Total Hacks 49 | . 24 . 25 . Successful 39 | . 14 . 25 . Failed 10 | . 10 . . . Catastrophic . | . . . . . Database Lockouts . | . . . . . Manual 18 | . 17 . 1 . Terminals 23 | . 23 . . . Fabricators . | . . . . . Repair Stations . | . . . . . Recycling Units 1 | . 1 . . . Scanalyzers . | . . . . . Garrison Access . | . . . . . Terminal Hacks 33 | . 8 . 25 . Record 24 | . . . 24 . Part Schematic 2 | . 2 . . . Robot Analysis 1 | . 1 . . . Prototype ID Bank 2 | . 2 . . . Branch Access Points 1 | . 1 . . . Locate Traps 1 | . 1 . . . Zone Layout 1 | . 1 . . . EX-Prototype ID Bank 1 | . . . 1 . Fabricator Hacks . | . . . . . Repair Station Hacks . | . . . . . Recycling Unit Hacks 1 | . 1 . . . Retrieve Components 1 | . 1 . . . Scanalyzer . | . . . . . Garrison Access Hacks . | . . . . . Unauthorized Hacks 5 | . 5 . . . Terminals 5 | . 5 . . . Track 1 | . 1 . . . Botnet 3 | . 3 . . . Operators 1 | . 1 . . . Fabricators . | . . . . . Repair Stations . | . . . . . Recycling Units . | . . . . . Scanalyzers . | . . . . . Garrison Access . | . . . . . Data Cores Recovered . | . . . . . Used . | . . . . . Hacking Detections 6 | . 6 . . . Full Trace Events . | . . . . . Feedback Events . | . . . . . Feedback Blocked . | . . . . . Robot Schematics Acquired . | . . . . . Robots Built . | . . . . . Matter . | . . . . . Time . | . . . . . Total Robot Build Rating . | . . . . . Part Schematics Acquired 2 | . 2 . . . Parts Built . | . . . . . Matter . | . . . . . Time . | . . . . . Total Part Build Rating . | . . . . . Parts Repaired . | . . . . . Time . | . . . . . Parts Recycled . | . . . . . Recycled Matter . | . . . . . Retrieved Matter . | . . . . . Retrieved Components 10 | . 10 . . . Parts Scanalyzed . | . . . . . Part Schematics Acquired . | . . . . . Parts Damaged . | . . . . . Bothacking | -11 -10 -10 -10 -9 ------------ Run | Scr Mat Min Exi Min Used RIF Installer . | . . . . . Robots Hacked . | . . . . . Non-combat . | . . . . . Combat . | . . . . . Robot Hacks Applied . | . . . . . Relay Couplers Released . | . . . . . Robots Rewired 3 | . . . 3 . Allies Hacked . | . . . . . Hacks Repelled . | . . . . . Allies | -11 -10 -10 -10 -9 -------- Run | Scr Mat Min Exi Min Total Allies 3 | . . . 3 . Largest Group 3 | . . . 3 3 Highest-Rated Group 50 | . . . 50 50 Highest-Rated Ally 21 | . . . 21 21 Total Orders 2 | . . . 2 . STAY 1 | . . . 1 . FOLLOW 1 | . . . 1 . Ally Attacks 17 | . . . . 17 Total Damage 392 | . . . . 392 Kills 7 | . . . . 7 Allies Corrupted 1 | . . . . 1 Allies Melted . | . . . . . Intel | -11 -10 -10 -10 -9 ------- Run | Scr Mat Min Exi Min Robot Analysis Total 1 | . 1 . . . Derelict Logs Recovered 1 | . . 1 . . Drone Launches . | . . . . . Drone Recoveries . | . . . . . Exploration | -11 -10 -10 -10 -9 ------------- Run | Scr Mat Min Exi Min Turns Passed 2631 | 73 850 626 841 241 Spaces Moved 1770 | 44 518 448 600 160 Core 1 | 1 . . . . Treads 5 | 5 . . . . Legs . | . . . . . Wheels 1764 | 38 518 448 600 160 Hover . | . . . . . Flight . | . . . . . Fastest Speed 50 | 50 100 130 130 120 Average Speed 126 | 105 120 130 130 129 Slowest Speed 160 | 160 130 130 130 130 Overloaded Moves . | . . . . . Propulsion Burnouts . | . . . . . Robots Hopped . | . . . . . Cave-ins Triggered . | . . . . . Exploration Rate (%) 58 | 5 69 97 90 31 Regions Visited 4 Branch Regions 3 Pre-discovered Areas 2 | . . 1 1 . Known Exits Taken 1 | . 1 . . . Unknown Exits Taken 3 | 1 . 1 1 . Scrap Searched 2 | . . 1 . 1 Spaces Dug . | . . . . . Terrain Destroyed 8 | . 3 . 5 . Melee . | . . . . . Projectile . | . . . . . AOE 8 | . 3 . 5 . Terrain Rammed . | . . . . . Walls Destroyed . | . . . . . Machines Disabled . | . . . . . Actions | -11 -10 -10 -10 -9 --------- Run | Scr Mat Min Exi Min Total 2030 | 60 676 474 637 183 Wait 93 | . 79 1 4 9 Move 1766 | 43 517 447 599 160 Hop . | . . . . . Pick Up 29 | 6 18 2 2 1 Fast Attach 10 | 5 3 1 1 . Attach 6 | 2 2 1 . 1 Detach . | . . . . . Swap 7 | . 4 1 . 2 Drop 16 | . 9 2 4 1 Fire 95 | 4 44 19 20 8 Melee 6 | . . . 6 . Ram . | . . . . . Kick . | . . . . . Crush 1 | . . . . 1 Escape Stasis . | . . . . . Rewire 1 | . . . 1 . Trap . | . . . . . Miscellaneous . | . . . . . Route ------- -11/Scrapyard -10/Materials (discovered 4 exits: [*Mat x2] / *Min x2) -10/Mines (discovered 3 exits: [*Mat x2] / *Exi) -10/Exiles -9/Mines History --------- Turn | Location | Event 2 | -11/Scrapyard | Met Revision 17 21 | -11/Scrapyard | Discovered new exit (range 15) 74 | -11/Scrapyard | Entered Materials 313 | -10/Materials | Build established: Mutant 321 | -10/Materials | Discovered new exit (range 15) 642 | -10/Materials | Identified exit to Mines 730 | -10/Materials | Discovered new exit (range 16) 924 | -10/Materials | Entered Mines 1009 | -10/Mines | Discovered new exit (range 7) 1010 | -10/Mines | Learned location of Storage (-7) 1104 | -10/Mines | Deemed a non-threat by the Exiles lab entrance 1104 | -10/Mines | Discovered new exit (range 5) 1323 | -10/Mines | Learned Materials emergency access door positions 1342 | -10/Mines | Discovered new exit (range 7) 1550 | -10/Mines | Entered Exiles 1550 | -10/Exiles | Found Exiles lab destroyed 1695 | -10/Exiles | Learned location of Zion (-6) 1759 | -10/Exiles | Opened EX-Vault 1771 | -10/Exiles | Found Lightpack 2.0 2339 | -10/Exiles | Discovered new exit (range 12) 2391 | -10/Exiles | Entered Mines 2391 | -9/Mines | Accompanied by 3 allies 2405 | -9/Mines | Met a Derelict bent on vengeance 2551 | -9/Mines | Assembled infested the area 2556 | -9/Mines | Assisted by a Guerilla fighting off Assembled 2610 | -9/Mines | Core integrity fell below 50% 2620 | -9/Mines | Core integrity fell below 20% 2632 | -9/Mines | Destroyed by as-63525 with Assembled Blade Last Messages --------------- 02555_ as-68708 destroyed. 02556_ A derelict emerges from the shadows: "You need to get out of here! I've been tracking a group of Assembled to figure out where they're coming from, and they're closing on this area, come on!" 02556_ Slug penetrates as-51014. 02558_ K-01 Serf collects debris. 02592_ R-06 Scavenger system corrupted by crushing effect. 02592_ Destroyed Asb. Hover Unit. 02592_ R-06 Scavenger destroyed. 02598_ Com. Wheel destroyed. 02598_ System corrupted by crushing effect (+2). 02599_ System corrupted: Energy discharge (-55). 02602_ Lgt. Assault Rifle destroyed. 02602_ System corrupted by crushing effect (+2). 02605_ Slammed into as-72137. 02610_ Acquired 24 matter. 02626_ Ion Engine destroyed. 02630_ U-05 Engineer lays Concrete. 02630_ U-05 Engineer builds a Wall. 02631_ System corrupted: Component data lost. Map ----- +----------------------------------------------------+ | | | | | | | ?????????????????????????????????????????????????? | | ?????????????????????????????????????????????????? | | ????????????????####???????####??????????????????? | | ???????????????## ###????## ##?????????????????? | | ???????????????# ##???# #?????????????????? | | ???????????????# #???# ##????????????????? | | ?#####?????????# #???## ##???????????????? | | ## ##?????????# #????## #???????????????? | | # #?????????# ##?#### #???????????????? | | # ##???????## #?## #???????????????? | | # ###??#### ##?# ##???????????????? | | ## #### #??# ####????????????????? | | ?## ## #### ###???????????????????? | | ??###### ## ##?????????????????????? | | ???????## #??????????????????????? | | ????????## % #??????????????????????? | | ?????????## #??????????????????????? | | ??????????## ## % ##???###????????????????? | | ???????????# ### #??## ##???????????????? | | ???????????# #?## #### ##### ?????????? | | ???????????# ##### ###%% #???????? | | ???????????# #?# a % ??????? | | ???????????### #?# a a@%%%t * ??????? | | ?????????????# #?# a##!#= =% ??????? | | ?????????????# #?# ##%## % ! ??????? | | ?????????????# ### ###!### u ???????? | | ???????####### ##?#=#?? ## ???????? | | ??????## ###### %#?## ##?# #?? u ????????? | | ?????## #???# [### ##?####???? #????????? | | ?????# #####% ## ###???????? ????????? | | ?????## ### !=## #???????????????????? | | ??????## ## ### #???????????????????? | | ??????## *%!## #?# #???????????????????? | | ?????## =%% % ##??# ####???????????????????? | | ?????# #????# ???????????????????????? | | ????# ###### ##?????#???????????????????????? | | ????# ##????####??????????????????????????????? | | ????## ##???????????????????????????????????????? | | ?????####????????????????????????????????????????? | | ?????????????????????????????????????????????????? | | ?????????????????????????????????????????????????? | | ?????????????????????????????????????????????????? | | ?????????????????????????????????????????????????? | | ?????????????????????????????????????????????????? | | ?????????????????????????????????????????????????? | | ?????????????????????????????????????????????????? | | ?????????????????????????????????????????????????? | +----------------------------------------------------+ Best States ------------- Heat Dissipation 25 Energy Generation 10 Energy Capacity 250 Matter Stores 300 Matter Capacity 300 Sight Range 16 Terrain Scan Range 16 Terrain Scan Density 10 Evasion (%) 40 Recoil Reduction 1 Item Schematics ----------------- Lrg. Storage Unit | -10/Materials | Hacked Hcp. Storage Unit | -10/Materials | Hacked Robot Schematics ------------------ None Fabricated ------------ Nothing Alien Tech Used ----------------- None Achievements -------------- None Challenges ------------ None Game ------ Seed SkeletonReactiveRecalibrator Manual? 0 Play Time 00:19:29 Cumulative 189.9 hours Start 2021.01.20 @ 18:47:50 End 2021.01.20 @ 19:05:02 Sessions 1 Manual Loads 0 Difficulty Rogue Special Mode None Game No. 65 Rogue 50 Adventurer 15 Explorer 0 Win Type - Total 6 Types 3/0/1/1/1/0/0/0/0 Lore% 82 Gallery% 83 Achievement% 69 Wizard Run 0 Options --------- ASCII 0 Keyboard 0 Movement Numpad Keybinds 0 Fullscreen 1 Font 18/SmallcapsGlow Map View 76x50 Tactical HUD 1 Map Filters NONE Filters NONE Steam 1 RUN: cea29afe-45e1-4ca8-9c10-ca83e6d95a3d